[Event "Late-Titled-Tuesday-Blitz-May-28-2024"]
[Site "Chess.com"]
[Date "2024.05.28"]
[Round "11"]
[White "Zq1"]
[Black "djano"]
[Result "0-1"]
[WhiteElo "2533"]
[BlackElo "2615"]
[TimeControl "180+1"]
[EndTime "16:06:16 PDT"]
[Termination "djano won on time"]

1. Nf3 {[%clk 0:03:00.9]} 1... g6 {[%clk 0:02:59.7]} 2. c4 {[%clk 0:03:00.8]}
2... Bg7 {[%clk 0:02:59.8]} 3. Nc3 {[%clk 0:03:01]} 3... Nf6 {[%clk 0:03:00.3]}
4. e4 {[%clk 0:03:01.1]} 4... d6 {[%clk 0:03:00.9]} 5. d4 {[%clk 0:03:01.4]}
5... O-O {[%clk 0:03:01.2]} 6. Be2 {[%clk 0:03:01.3]} 6... c5 {[%clk 0:03:01.1]}
7. d5 {[%clk 0:02:55.1]} 7... e6 {[%clk 0:02:52.7]} 8. O-O {[%clk 0:02:54.1]}
8... exd5 {[%clk 0:02:53.1]} 9. cxd5 {[%clk 0:02:52.8]} 9... Re8 {[%clk
0:02:53]} 10. Bd3 {[%clk 0:02:51.6]} 10... a6 {[%clk 0:02:52]} 11. a4 {[%clk
0:02:50.6]} 11... Nbd7 {[%clk 0:02:50.5]} 12. h3 {[%clk 0:02:50.5]} 12... Qc7
{[%clk 0:02:48.2]} 13. Bf4 {[%clk 0:02:49.1]} 13... Nh5 {[%clk 0:02:47.4]} 14.
Bh2 {[%clk 0:02:46.9]} 14... c4 {[%clk 0:02:44.4]} 15. Bc2 {[%clk 0:02:45.9]}
15... Rb8 {[%clk 0:02:41.9]} 16. Re1 {[%clk 0:02:33.5]} 16... b5 {[%clk
0:02:41]} 17. axb5 {[%clk 0:02:33.6]} 17... axb5 {[%clk 0:02:41.9]} 18. g4
{[%clk 0:02:33.4]} 18... b4 {[%clk 0:02:38.6]} 19. gxh5 {[%clk 0:02:06.4]} 19...
bxc3 {[%clk 0:02:38.2]} 20. bxc3 {[%clk 0:02:06.4]} 20... Bxc3 {[%clk
0:02:34.9]} 21. hxg6 {[%clk 0:02:06.1]} 21... hxg6 {[%clk 0:02:35.7]} 22. Ra4
{[%clk 0:01:54.9]} 22... Bxe1 {[%clk 0:02:32.2]} 23. Qxe1 {[%clk 0:01:54.9]}
23... Rb2 {[%clk 0:02:18.1]} 24. Qc3 {[%clk 0:01:54.6]} 24... Qb6 {[%clk
0:02:04.9]} 25. Rxc4 {[%clk 0:01:54.2]} 25... Bb7 {[%clk 0:01:37.6]} 26. Bxd6
{[%clk 0:01:48]} 26... Rxc2 {[%clk 0:01:28.3]} 27. Qxc2 {[%clk 0:01:45.3]} 27...
Qxd6 {[%clk 0:01:28.6]} 28. Qc3 {[%clk 0:01:35.6]} 28... Ne5 {[%clk 0:01:20.5]}
29. Nxe5 {[%clk 0:01:30.1]} 29... Rxe5 {[%clk 0:01:21.4]} 30. Rc7 {[%clk
0:01:20.7]} 30... Rg5+ {[%clk 0:01:21.2]} 31. Kh1 {[%clk 0:01:11]} 31... Qa6
{[%clk 0:00:47.2]} 32. Qc1 {[%clk 0:00:59.3]} 32... Rh5 {[%clk 0:00:43.6]} 33.
Kg2 {[%clk 0:00:52.2]} 33... Qd3 {[%clk 0:00:43.2]} 34. f3 {[%clk 0:00:42.8]}
34... Ba6 {[%clk 0:00:35.3]} 35. Rc2 {[%clk 0:00:33.4]} 35... Kh7 {[%clk
0:00:32]} 36. Rf2 {[%clk 0:00:20.1]} 36... f6 {[%clk 0:00:26.7]} 37. Qc7+ {[%clk
0:00:18.7]} 37... Kh6 {[%clk 0:00:26.8]} 38. Qd8 {[%clk 0:00:16.8]} 38... Rg5+
{[%clk 0:00:26.8]} 39. Kh2 {[%clk 0:00:16.8]} 39... Kh7 {[%clk 0:00:11.4]} 40.
Qe7+ {[%clk 0:00:16.7]} 40... Kh6 {[%clk 0:00:11.2]} 41. Qxf6 {[%clk 0:00:16.8]}
41... Rh5 {[%clk 0:00:07.6]} 42. Qh8+ {[%clk 0:00:16.2]} 42... Kg5 {[%clk
0:00:08.1]} 43. Qe5+ {[%clk 0:00:13.5]} 43... Kh6 {[%clk 0:00:08.5]} 44. Qf4+
{[%clk 0:00:13.6]} 44... Kh7 {[%clk 0:00:07.6]} 45. Rg2 {[%clk 0:00:13.3]} 45...
Bc8 {[%clk 0:00:06]} 46. Qf7+ {[%clk 0:00:11]} 46... Kh8 {[%clk 0:00:06.5]} 47.
Qf8+ {[%clk 0:00:10.6]} 47... Kh7 {[%clk 0:00:07]} 48. Qxc8 {[%clk 0:00:10.3]}
48... Qxf3 {[%clk 0:00:07.4]} 49. Qg4 {[%clk 0:00:09.3]} 49... Qf6 {[%clk
0:00:06]} 50. Qg3 {[%clk 0:00:06.6]} 50... Re5 {[%clk 0:00:03.7]} 51. Re2 {[%clk
0:00:06.6]} 51... Qd6 {[%clk 0:00:03.8]} 52. Kg2 {[%clk 0:00:04.6]} 52... Qe7
{[%clk 0:00:01.9]} 53. Qf4 {[%clk 0:00:01]} 53... Rg5+ {[%clk 0:00:02]} 0-1

[Event "Late-Titled-Tuesday-Blitz-May-28-2024"]
[Site "Chess.com"]
[Date "2024.05.28"]
[Round "11"]
[White "CheckBits"]
[Black "Denmark2015"]
[Result "1/2-1/2"]
[WhiteElo "2419"]
[BlackElo "2559"]
[TimeControl "180+1"]
[EndTime "16:06:21 PDT"]
[Termination "Game drawn by repetition"]

1. e4 {[%clk 0:03:00.9]} 1... e6 {[%clk 0:03:00.2]} 2. Nf3 {[%clk 0:03:00.8]}
2... d5 {[%clk 0:03:00.4]} 3. e5 {[%clk 0:03:01.2]} 3... c5 {[%clk 0:02:59.2]}
4. d4 {[%clk 0:03:02.1]} 4... Nc6 {[%clk 0:02:58.5]} 5. c3 {[%clk 0:03:02.2]}
5... Nge7 {[%clk 0:02:58.4]} 6. Bd3 {[%clk 0:03:01.4]} 6... Nf5 {[%clk
0:02:58.5]} 7. O-O {[%clk 0:03:00]} 7... cxd4 {[%clk 0:02:56.2]} 8. Bxf5 {[%clk
0:02:59.6]} 8... exf5 {[%clk 0:02:55.6]} 9. Nxd4 {[%clk 0:02:59.7]} 9... Be6
{[%clk 0:02:56.5]} 10. Re1 {[%clk 0:02:38.5]} 10... Be7 {[%clk 0:02:54.1]} 11.
Qd3 {[%clk 0:02:37.6]} 11... Qd7 {[%clk 0:02:49.6]} 12. Nd2 {[%clk 0:02:33.8]}
12... O-O {[%clk 0:02:48.5]} 13. N2f3 {[%clk 0:02:33.6]} 13... h6 {[%clk
0:02:47.5]} 14. h4 {[%clk 0:02:30.2]} 14... Rfd8 {[%clk 0:02:45]} 15. g3 {[%clk
0:02:29.5]} 15... a6 {[%clk 0:02:44]} 16. Bf4 {[%clk 0:02:24]} 16... Rac8 {[%clk
0:02:43.6]} 17. Rad1 {[%clk 0:02:22.3]} 17... Na5 {[%clk 0:02:40]} 18. h5 {[%clk
0:02:16.5]} 18... Nc4 {[%clk 0:02:38.3]} 19. Re2 {[%clk 0:02:16]} 19... b5
{[%clk 0:02:33.8]} 20. Kg2 {[%clk 0:02:15.4]} 20... b4 {[%clk 0:02:25.6]} 21.
cxb4 {[%clk 0:02:13.1]} 21... Bxb4 {[%clk 0:02:24]} 22. Nh4 {[%clk 0:02:09]}
22... Bc5 {[%clk 0:02:08.4]} 23. Nhxf5 {[%clk 0:02:07.3]} 23... Bxd4 {[%clk
0:02:06.4]} 24. Nxd4 {[%clk 0:02:06.6]} 24... Bg4 {[%clk 0:01:56.3]} 25. f3
{[%clk 0:02:02.5]} 25... Bxh5 {[%clk 0:01:56.6]} 26. e6 {[%clk 0:01:59.3]} 26...
fxe6 {[%clk 0:01:49.2]} 27. Nxe6 {[%clk 0:01:52.9]} 27... Re8 {[%clk 0:01:45.3]}
28. Rde1 {[%clk 0:01:44.2]} 28... Bf7 {[%clk 0:01:33.7]} 29. Nd4 {[%clk
0:01:35.7]} 29... a5 {[%clk 0:01:17.8]} 30. g4 {[%clk 0:01:32.2]} 30... a4
{[%clk 0:01:14.4]} 31. b3 {[%clk 0:01:28.8]} 31... axb3 {[%clk 0:01:14]} 32.
axb3 {[%clk 0:01:29.2]} 32... Na5 {[%clk 0:01:05]} 33. Nf5 {[%clk 0:01:27.5]}
33... Rxe2+ {[%clk 0:00:56.5]} 34. Rxe2 {[%clk 0:01:27.3]} 34... Re8 {[%clk
0:00:49.3]} 35. Rxe8+ {[%clk 0:01:21.3]} 35... Bxe8 {[%clk 0:00:38.9]} 36. b4
{[%clk 0:01:09]} 36... Nb7 {[%clk 0:00:35]} 37. Qxd5+ {[%clk 0:00:58.6]} 37...
Qxd5 {[%clk 0:00:32.9]} 38. Ne7+ {[%clk 0:00:59.2]} 38... Kf7 {[%clk 0:00:32.8]}
39. Nxd5 {[%clk 0:00:59.9]} 39... Bc6 {[%clk 0:00:32.2]} 40. Nc3 {[%clk
0:00:53.8]} 40... Nd8 {[%clk 0:00:32.3]} 41. Kf2 {[%clk 0:00:52]} 41... Ne6
{[%clk 0:00:32.2]} 42. Be5 {[%clk 0:00:52.3]} 42... Ng5 {[%clk 0:00:30]} 43. f4
{[%clk 0:00:36.1]} 43... Ne4+ {[%clk 0:00:29.4]} 44. Nxe4 {[%clk 0:00:36.4]}
44... Bxe4 {[%clk 0:00:30.3]} 45. b5 {[%clk 0:00:33.7]} 45... g6 {[%clk
0:00:30.1]} 46. Ke3 {[%clk 0:00:33]} 46... Bg2 {[%clk 0:00:29.4]} 47. Kd4 {[%clk
0:00:32.3]} 47... Ke6 {[%clk 0:00:27.5]} 48. Bg7 {[%clk 0:00:22.8]} 48... h5
{[%clk 0:00:27.5]} 49. f5+ {[%clk 0:00:12.2]} 49... Kf7 {[%clk 0:00:24.7]} 50.
Be5 {[%clk 0:00:07.8]} 50... h4 {[%clk 0:00:21.7]} 51. fxg6+ {[%clk 0:00:01]}
51... Kxg6 {[%clk 0:00:21.6]} 52. Bf4 {[%clk 0:00:01]} 52... Kf6 {[%clk
0:00:15.9]} 53. Kc5 {[%clk 0:00:01.1]} 53... h3 {[%clk 0:00:12.4]} 54. Kd6
{[%clk 0:00:01.1]} 54... h2 {[%clk 0:00:10.1]} 55. Bxh2 {[%clk 0:00:01.1]} 55...
Kg5 {[%clk 0:00:10.8]} 56. Be5 {[%clk 0:00:01.3]} 56... Kxg4 {[%clk 0:00:10.9]}
57. Bd4 {[%clk 0:00:01.9]} 57... Kf5 {[%clk 0:00:09.6]} 58. Bc5 {[%clk
0:00:02.8]} 58... Kg4 {[%clk 0:00:09.6]} 59. b6 {[%clk 0:00:03.7]} 59... Kf5
{[%clk 0:00:09.7]} 60. Kc7 {[%clk 0:00:04.6]} 60... Kg4 {[%clk 0:00:10.1]} 61.
Bd6 {[%clk 0:00:05.5]} 61... Kf5 {[%clk 0:00:10.4]} 62. Be7 {[%clk 0:00:06.4]}
62... Kg4 {[%clk 0:00:10.5]} 63. Bf8 {[%clk 0:00:07.3]} 63... Kf5 {[%clk
0:00:10.8]} 64. Be7 {[%clk 0:00:08.2]} 64... Kg4 {[%clk 0:00:11]} 65. Bd8 {[%clk
0:00:09.1]} 65... Kf5 {[%clk 0:00:11.3]} 66. Be7 {[%clk 0:00:10]} 1/2-1/2

[Event "Late-Titled-Tuesday-Blitz-May-28-2024"]
[Site "Chess.com"]
[Date "2024.05.28"]
[Round "11"]
[White "nihalsarin"]
[Black "wonderfultime"]
[Result "0-1"]
[WhiteElo "3244"]
[BlackElo "3067"]
[TimeControl "180+1"]
[EndTime "16:06:27 PDT"]
[Termination "wonderfultime won by checkmate"]

1. e4 {[%clk 0:02:54.9]} 1... e5 {[%clk 0:02:57.5]} 2. Nf3 {[%clk 0:02:53.1]}
2... Nc6 {[%clk 0:02:57.4]} 3. Bb5 {[%clk 0:02:53.8]} 3... a6 {[%clk 0:02:57.2]}
4. Ba4 {[%clk 0:02:54]} 4... Bc5 {[%clk 0:02:57.6]} 5. c3 {[%clk 0:02:49.7]}
5... Nge7 {[%clk 0:02:57.3]} 6. O-O {[%clk 0:02:50.4]} 6... Ng6 {[%clk
0:02:56.6]} 7. d4 {[%clk 0:02:51]} 7... Ba7 {[%clk 0:02:57.3]} 8. Bxc6 {[%clk
0:02:45.3]} 8... dxc6 {[%clk 0:02:56.6]} 9. Nxe5 {[%clk 0:02:46]} 9... Nxe5
{[%clk 0:02:55.4]} 10. dxe5 {[%clk 0:02:46.9]} 10... Qe7 {[%clk 0:02:56]} 11.
Qh5 {[%clk 0:02:37.4]} 11... h6 {[%clk 0:02:45.5]} 12. Nd2 {[%clk 0:02:34.8]}
12... Be6 {[%clk 0:02:35.3]} 13. Qe2 {[%clk 0:02:20.1]} 13... O-O-O {[%clk
0:02:31]} 14. Nf3 {[%clk 0:02:20.6]} 14... Bg4 {[%clk 0:02:15.3]} 15. Be3 {[%clk
0:02:19.2]} 15... Bxe3 {[%clk 0:01:56.4]} 16. Qxe3 {[%clk 0:02:20.1]} 16... Bxf3
{[%clk 0:01:57]} 17. Qxf3 {[%clk 0:02:20.9]} 17... Qxe5 {[%clk 0:01:57.4]} 18.
Rad1 {[%clk 0:01:38.9]} 18... Qe6 {[%clk 0:01:57.5]} 19. b3 {[%clk 0:01:32.8]}
19... a5 {[%clk 0:01:57.8]} 20. g3 {[%clk 0:01:28.8]} 20... b6 {[%clk
0:01:46.1]} 21. Kg2 {[%clk 0:01:28.6]} 21... Kb7 {[%clk 0:01:46.8]} 22. Rd3
{[%clk 0:01:23.5]} 22... Rhe8 {[%clk 0:01:45]} 23. Re1 {[%clk 0:01:14]} 23... a4
{[%clk 0:01:43.5]} 24. c4 {[%clk 0:01:00.8]} 24... Rxd3 {[%clk 0:01:35.2]} 25.
Qxd3 {[%clk 0:01:00.6]} 25... axb3 {[%clk 0:01:36.1]} 26. axb3 {[%clk
0:01:01.2]} 26... Qe5 {[%clk 0:01:36.9]} 27. f4 {[%clk 0:00:58.9]} 27... Qe7
{[%clk 0:01:36.6]} 28. Rd1 {[%clk 0:00:39.1]} 28... g5 {[%clk 0:01:27.5]} 29.
fxg5 {[%clk 0:00:35]} 29... hxg5 {[%clk 0:01:25.5]} 30. Qf3 {[%clk 0:00:30.4]}
30... Ra8 {[%clk 0:00:34.3]} 31. Rd2 {[%clk 0:00:27.4]} 31... Ra1 {[%clk
0:00:33.2]} 32. Rf2 {[%clk 0:00:27.3]} 32... Re1 {[%clk 0:00:30.1]} 33. Qxf7
{[%clk 0:00:17.1]} 33... Qxe4+ {[%clk 0:00:29.3]} 34. Qf3 {[%clk 0:00:17.7]}
34... Qb1 {[%clk 0:00:27.3]} 35. Re2 {[%clk 0:00:14]} 35... Rg1+ {[%clk
0:00:12.2]} 36. Kh3 {[%clk 0:00:14.1]} 36... Rf1 {[%clk 0:00:12.9]} 37. Qe4
{[%clk 0:00:11.8]} 37... Qxb3 {[%clk 0:00:11]} 38. Kg4 {[%clk 0:00:12.1]} 38...
Rc1 {[%clk 0:00:10.3]} 39. Re3 {[%clk 0:00:08.8]} 39... Qb4 {[%clk 0:00:08.6]}
40. Kxg5 {[%clk 0:00:04.9]} 40... Rxc4 {[%clk 0:00:09.3]} 41. Qf3 {[%clk
0:00:04.9]} 41... Qc5+ {[%clk 0:00:07.1]} 42. Kg6 {[%clk 0:00:04.2]} 42... Qd6+
{[%clk 0:00:06.5]} 43. Qf6 {[%clk 0:00:02]} 43... Rg4+ {[%clk 0:00:06.7]} 44.
Kf7 {[%clk 0:00:02.6]} 44... Qd5+ {[%clk 0:00:05.5]} 45. Re6 {[%clk 0:00:03.2]}
45... Qh5+ {[%clk 0:00:05.9]} 46. Ke7 {[%clk 0:00:02.9]} 46... Rg8 {[%clk
0:00:06.1]} 47. Qf7 {[%clk 0:00:02.8]} 47... Qg5+ {[%clk 0:00:04.4]} 48. Qf6
{[%clk 0:00:03.4]} 48... Qd5 {[%clk 0:00:04.8]} 49. Kf7 {[%clk 0:00:02.9]} 49...
Rc8 {[%clk 0:00:04]} 50. g4 {[%clk 0:00:02.1]} 50... b5 {[%clk 0:00:04.3]} 51.
g5 {[%clk 0:00:02.5]} 51... Qd7+ {[%clk 0:00:04.8]} 52. Re7 {[%clk 0:00:02.8]}
52... Qd5+ {[%clk 0:00:05]} 53. Re6 {[%clk 0:00:03.2]} 53... Qd7+ {[%clk
0:00:05.5]} 54. Qe7 {[%clk 0:00:03.2]} 54... Qd5 {[%clk 0:00:03.4]} 55. g6
{[%clk 0:00:03.4]} 55... Qh5 {[%clk 0:00:03.7]} 56. h4 {[%clk 0:00:01.8]} 56...
Qh6 {[%clk 0:00:02.9]} 57. Qg5 {[%clk 0:00:02.1]} 57... Qf8# {[%clk 0:00:02.8]}
0-1

[Event "Late-Titled-Tuesday-Blitz-May-28-2024"]
[Site "Chess.com"]
[Date "2024.05.28"]
[Round "11"]
[White "SHIVACalypso"]
[Black "emeli_chess"]
[Result "0-1"]
[WhiteElo "2520"]
[BlackElo "2431"]
[TimeControl "180+1"]
[EndTime "16:06:28 PDT"]
[Termination "emeli_chess won by resignation"]

1. e4 {[%clk 0:03:00.9]} 1... e5 {[%clk 0:02:58.6]} 2. Nf3 {[%clk 0:02:58.5]}
2... Nc6 {[%clk 0:02:58.8]} 3. h3 {[%clk 0:02:57]} 3... d5 {[%clk 0:02:57.7]} 4.
exd5 {[%clk 0:02:42.9]} 4... Qxd5 {[%clk 0:02:56.6]} 5. Nc3 {[%clk 0:02:42.4]}
5... Qa5 {[%clk 0:02:55.9]} 6. Bc4 {[%clk 0:02:34.7]} 6... Bd6 {[%clk
0:02:29.3]} 7. O-O {[%clk 0:02:23.9]} 7... Nf6 {[%clk 0:02:26.9]} 8. d4 {[%clk
0:02:16.5]} 8... exd4 {[%clk 0:02:17.1]} 9. Nxd4 {[%clk 0:02:17.4]} 9... O-O
{[%clk 0:02:08.3]} 10. Nxc6 {[%clk 0:01:52.6]} 10... bxc6 {[%clk 0:02:07.6]} 11.
Re1 {[%clk 0:01:48.8]} 11... Bd7 {[%clk 0:01:51.1]} 12. Qf3 {[%clk 0:01:42.9]}
12... Rae8 {[%clk 0:01:45.7]} 13. Bd2 {[%clk 0:01:27.9]} 13... Qc5 {[%clk
0:01:41.5]} 14. Bb3 {[%clk 0:01:22.7]} 14... Qh5 {[%clk 0:01:29.5]} 15. Qxh5
{[%clk 0:01:20.9]} 15... Nxh5 {[%clk 0:01:29.2]} 16. Rxe8 {[%clk 0:01:19.5]}
16... Rxe8 {[%clk 0:01:28.7]} 17. Re1 {[%clk 0:01:19.6]} 17... Rxe1+ {[%clk
0:01:27.9]} 18. Bxe1 {[%clk 0:01:20.5]} 18... Nf4 {[%clk 0:01:26.5]} 19. Bd2
{[%clk 0:01:15.9]} 19... Ne6 {[%clk 0:01:21.5]} 20. Be3 {[%clk 0:01:08]} 20...
c5 {[%clk 0:01:20.8]} 21. Ne4 {[%clk 0:01:03.6]} 21... Bc6 {[%clk 0:01:07.4]}
22. Bxe6 {[%clk 0:00:37]} 22... Bxe4 {[%clk 0:01:03.6]} 23. Bb3 {[%clk
0:00:37.4]} 23... Kf8 {[%clk 0:00:59.2]} 24. Kf1 {[%clk 0:00:36.9]} 24... f5
{[%clk 0:00:56.9]} 25. f3 {[%clk 0:00:35.6]} 25... Bc6 {[%clk 0:00:51.6]} 26. a4
{[%clk 0:00:30.4]} 26... c4 {[%clk 0:00:41.3]} 27. Bxc4 {[%clk 0:00:27.3]} 27...
Bxa4 {[%clk 0:00:41]} 28. b3 {[%clk 0:00:27.8]} 28... Bc6 {[%clk 0:00:39.3]} 29.
Bxa7 {[%clk 0:00:27.8]} 29... Ke7 {[%clk 0:00:38.9]} 30. Bd4 {[%clk 0:00:27.3]}
30... g5 {[%clk 0:00:37.2]} 31. Kf2 {[%clk 0:00:25.3]} 31... h5 {[%clk
0:00:36.9]} 32. g4 {[%clk 0:00:15.6]} 32... hxg4 {[%clk 0:00:35.5]} 33. fxg4
{[%clk 0:00:16.2]} 33... fxg4 {[%clk 0:00:35.7]} 34. hxg4 {[%clk 0:00:15.7]}
34... Bf4 {[%clk 0:00:33.2]} 35. Be3 {[%clk 0:00:13.9]} 35... Kf6 {[%clk
0:00:33.3]} 36. Be2 {[%clk 0:00:11.9]} 36... Ke5 {[%clk 0:00:32.4]} 37. Ba7
{[%clk 0:00:10.5]} 37... Bc1 {[%clk 0:00:26]} 38. Bf3 {[%clk 0:00:09.6]} 38...
Bd7 {[%clk 0:00:23.8]} 39. c4 {[%clk 0:00:07.8]} 39... Bb2 {[%clk 0:00:22.5]}
40. Bb8 {[%clk 0:00:06.4]} 40... Bd4+ {[%clk 0:00:22]} 41. Kg3 {[%clk
0:00:06.4]} 41... Kd6 {[%clk 0:00:21.8]} 42. b4 {[%clk 0:00:06.7]} 42... Be6
{[%clk 0:00:19.8]} 43. c5+ {[%clk 0:00:06.5]} 43... Kd7 {[%clk 0:00:20.2]} 44.
c6+ {[%clk 0:00:06.7]} 44... Kd6 {[%clk 0:00:20.2]} 45. b5 {[%clk 0:00:06.1]}
45... Bc4 {[%clk 0:00:19.6]} 46. b6 {[%clk 0:00:01]} 46... Bxb6 {[%clk
0:00:18.7]} 47. Be4 {[%clk 0:00:01.5]} 47... Bb5 {[%clk 0:00:17.9]} 48. Kf3
{[%clk 0:00:02.1]} 48... Bxc6 {[%clk 0:00:18]} 49. Bxc6 {[%clk 0:00:03]} 49...
Kxc6 {[%clk 0:00:18.4]} 50. Ke4 {[%clk 0:00:03.6]} 50... Kb7 {[%clk 0:00:18.6]}
51. Kf5 {[%clk 0:00:01.8]} 51... Kxb8 {[%clk 0:00:18.2]} 52. Kxg5 {[%clk
0:00:02.1]} 52... Kb7 {[%clk 0:00:18.6]} 53. Kf5 {[%clk 0:00:03]} 53... Bd4
{[%clk 0:00:18.5]} 54. Ke4 {[%clk 0:00:03.2]} 54... Bg7 {[%clk 0:00:18.4]} 55.
Kd5 {[%clk 0:00:04.1]} 55... c6+ {[%clk 0:00:18.1]} 56. Ke6 {[%clk 0:00:05]}
56... Kb6 {[%clk 0:00:18.2]} 57. Kf7 {[%clk 0:00:05.9]} 57... Bd4 {[%clk
0:00:18.2]} 58. g5 {[%clk 0:00:06.8]} 58... c5 {[%clk 0:00:18.3]} 59. g6 {[%clk
0:00:07.7]} 59... c4 {[%clk 0:00:18.4]} 60. Ke6 {[%clk 0:00:08.6]} 60... Kc5
{[%clk 0:00:17.9]} 61. g7 {[%clk 0:00:08]} 61... Bxg7 {[%clk 0:00:17]} 0-1

[Event "Late-Titled-Tuesday-Blitz-May-28-2024"]
[Site "Chess.com"]
[Date "2024.05.28"]
[Round "11"]
[White "Roedor"]
[Black "Supelyel"]
[Result "1-0"]
[WhiteElo "2349"]
[BlackElo "2442"]
[TimeControl "180+1"]
[EndTime "16:06:45 PDT"]
[Termination "Roedor won by resignation"]

1. c4 {[%clk 0:02:57]} 1... d6 {[%clk 0:02:59.5]} 2. Nf3 {[%clk 0:02:55.4]} 2...
Nf6 {[%clk 0:02:59.1]} 3. g3 {[%clk 0:02:55.9]} 3... Nbd7 {[%clk 0:02:58.9]} 4.
Bg2 {[%clk 0:02:56.5]} 4... e5 {[%clk 0:02:59.6]} 5. O-O {[%clk 0:02:57]} 5...
Be7 {[%clk 0:02:59.8]} 6. Nc3 {[%clk 0:02:55.9]} 6... O-O {[%clk 0:03:00.5]} 7.
d3 {[%clk 0:02:55.3]} 7... c6 {[%clk 0:03:01.1]} 8. Rb1 {[%clk 0:02:55.3]} 8...
a5 {[%clk 0:03:00.5]} 9. a3 {[%clk 0:02:55.3]} 9... Re8 {[%clk 0:03:00.8]} 10.
e4 {[%clk 0:02:55.2]} 10... h6 {[%clk 0:03:00.7]} 11. h3 {[%clk 0:02:55.3]}
11... Qc7 {[%clk 0:02:57.4]} 12. b4 {[%clk 0:02:55.2]} 12... axb4 {[%clk
0:02:57.5]} 13. axb4 {[%clk 0:02:56.1]} 13... Bf8 {[%clk 0:02:57.8]} 14. Be3
{[%clk 0:02:55.4]} 14... b6 {[%clk 0:02:31.1]} 15. Qd2 {[%clk 0:02:53.1]} 15...
Bb7 {[%clk 0:02:30.6]} 16. b5 {[%clk 0:02:42.2]} 16... Nc5 {[%clk 0:01:57.1]}
17. Nh4 {[%clk 0:02:33.8]} 17... Ra3 {[%clk 0:01:15.5]} 18. f4 {[%clk 0:02:17]}
18... Nh5 {[%clk 0:01:01.5]} 19. fxe5 {[%clk 0:01:17.4]} 19... dxe5 {[%clk
0:00:58.3]} 20. bxc6 {[%clk 0:01:15.4]} 20... Bxc6 {[%clk 0:00:55.8]} 21. Nf5
{[%clk 0:01:14.4]} 21... Rd8 {[%clk 0:00:44.6]} 22. Nd5 {[%clk 0:01:05.9]} 22...
Bxd5 {[%clk 0:00:43.8]} 23. cxd5 {[%clk 0:01:06.8]} 23... Rxd3 {[%clk
0:00:43.5]} 24. Qe2 {[%clk 0:01:07.3]} 24... Nf6 {[%clk 0:00:34.4]} 25. Kh2
{[%clk 0:01:01.6]} 25... Ra3 {[%clk 0:00:21.8]} 26. Nxh6+ {[%clk 0:01:01.5]}
26... gxh6 {[%clk 0:00:16.9]} 27. Rxf6 {[%clk 0:01:01.5]} 27... Bg7 {[%clk
0:00:17]} 28. Rc6 {[%clk 0:00:57]} 28... Qa7 {[%clk 0:00:13.8]} 29. Bxh6 {[%clk
0:00:49.2]} 29... Bxh6 {[%clk 0:00:11.7]} 30. Rxh6 {[%clk 0:00:48.1]} 30... Kf8
{[%clk 0:00:05.7]} 31. Qh5 {[%clk 0:00:32.5]} 31... Ra2 {[%clk 0:00:04]} 32.
Rh8+ {[%clk 0:00:31.7]} 32... Ke7 {[%clk 0:00:04.6]} 33. Qxe5+ {[%clk
0:00:28.9]} 33... Kd7 {[%clk 0:00:02.1]} 34. Qf5+ {[%clk 0:00:20]} 34... Kc7
{[%clk 0:00:00.9]} 35. Qxf7+ {[%clk 0:00:19.5]} 35... Rd7 {[%clk 0:00:01]} 36.
Qf4+ {[%clk 0:00:18.1]} 36... Kb7 {[%clk 0:00:01.4]} 37. Rh6 {[%clk 0:00:14.8]}
37... Na4 {[%clk 0:00:00.9]} 38. e5 {[%clk 0:00:11.8]} 38... Qb8 {[%clk
0:00:01]} 39. d6+ {[%clk 0:00:10.5]} 39... Ka7 {[%clk 0:00:01.9]} 40. Qb4 {[%clk
0:00:04.1]} 40... Qb7 {[%clk 0:00:01.3]} 41. Rg1 {[%clk 0:00:02.8]} 41... Rg7
{[%clk 0:00:01.2]} 42. Rh4 {[%clk 0:00:02.8]} 42... Nc5 {[%clk 0:00:01.2]} 43.
Qb3 {[%clk 0:00:02.7]} 43... Nxb3 {[%clk 0:00:01]} 44. Ra4+ {[%clk 0:00:03.2]}
44... Qa6 {[%clk 0:00:01.5]} 45. Rxa6+ {[%clk 0:00:00.7]} 45... Kxa6 {[%clk
0:00:02]} 46. e6 {[%clk 0:00:01.6]} 46... Nc5 {[%clk 0:00:02.3]} 47. e7 {[%clk
0:00:02.1]} 47... Rf7 {[%clk 0:00:02.3]} 48. g4 {[%clk 0:00:01.3]} 48... Re2
{[%clk 0:00:01.5]} 49. e8=Q {[%clk 0:00:02.2]} 49... Rxe8 {[%clk 0:00:01.2]} 50.
Ra1+ {[%clk 0:00:02.7]} 50... Kb5 {[%clk 0:00:01.4]} 51. Bf1+ {[%clk 0:00:03.4]}
51... Kc6 {[%clk 0:00:02.3]} 52. Re1 {[%clk 0:00:03.4]} 52... Kxd6 {[%clk
0:00:03.2]} 53. Bg2 {[%clk 0:00:03.7]} 53... Kd7 {[%clk 0:00:04.1]} 54. Rxe8
{[%clk 0:00:04]} 54... Re7 {[%clk 0:00:05]} 55. Rb8 {[%clk 0:00:03.4]} 55... Kc7
{[%clk 0:00:04.8]} 56. Rg8 {[%clk 0:00:03.7]} 56... b5 {[%clk 0:00:04.9]} 57.
Rg5 {[%clk 0:00:03.8]} 57... Kb6 {[%clk 0:00:05.2]} 58. Rg6+ {[%clk 0:00:04.2]}
58... Ka5 {[%clk 0:00:05.4]} 59. Rg5 {[%clk 0:00:04.7]} 59... Rc7 {[%clk
0:00:06]} 60. Bd5 {[%clk 0:00:03.1]} 60... b4 {[%clk 0:00:05.5]} 61. h4 {[%clk
0:00:03.7]} 61... Ka4 {[%clk 0:00:05.6]} 62. h5 {[%clk 0:00:03.9]} 62... Rd7
{[%clk 0:00:05.8]} 63. Bc4 {[%clk 0:00:04]} 63... Rd4 {[%clk 0:00:05.7]} 64.
Rxc5 {[%clk 0:00:03.6]} 64... b3 {[%clk 0:00:05.4]} 65. Bxb3+ {[%clk 0:00:03.2]}
65... Kb4 {[%clk 0:00:05.9]} 66. Rc4+ {[%clk 0:00:03.1]} 66... Rxc4 {[%clk
0:00:05.9]} 67. Bxc4 {[%clk 0:00:04]} 67... Kxc4 {[%clk 0:00:06.4]} 68. h6
{[%clk 0:00:04.4]} 1-0